[Event "Live Chess"]
[Site "Chess.com"]
[Date "2010.12.06"]
[Round "-"]
[White "Elud"]
[Black "hipposcottimus"]
[Result "0-1"]
[CurrentPosition "8/pp1k4/8/5P2/8/8/PPP1R1PP/2K5 w - -"]
[Timezone "UTC"]
[ECO "C31"]
[ECOUrl "https://www.chess.com/openings/Kings-Gambit-Declined-Falkbeer-Blackburne-Attack"]
[UTCDate "2010.12.06"]
[UTCTime "21:38:58"]
[WhiteElo "1305"]
[BlackElo "1592"]
[TimeControl "60"]
[Termination "hipposcottimus won on time"]
[StartTime "21:38:58"]
[EndDate "2010.12.06"]
[EndTime "21:41:13"]
[Link "https://www.chess.com/game/live/74720476"]

1. e4 {[%clk 0:01:00]} 1... e5 {[%clk 0:01:00]} 2. f4 {[%clk 0:00:59.2]} 2... d5 {[%clk 0:00:58.5]} 3. Nf3 {[%clk 0:00:58.8]} 3... dxe4 {[%clk 0:00:55.3]} 4. Nxe5 {[%clk 0:00:57.9]} 4... f6 {[%clk 0:00:55]} 5. Qh5+ {[%clk 0:00:53.9]} 5... g6 {[%clk 0:00:41.9]} 6. Nxg6 {[%clk 0:00:52.9]} 6... Ne7 {[%clk 0:00:35.2]} 7. Nxh8+ {[%clk 0:00:49.3]} 7... Ng6 {[%clk 0:00:34.8]} 8. Nxg6 {[%clk 0:00:47.3]} 8... hxg6 {[%clk 0:00:34.3]} 9. Qxg6+ {[%clk 0:00:46.6]} 9... Ke7 {[%clk 0:00:33.8]} 10. Qxe4+ {[%clk 0:00:45.3]} 10... Kd6 {[%clk 0:00:33.4]} 11. Nc3 {[%clk 0:00:42.8]} 11... Be6 {[%clk 0:00:29.2]} 12. Bc4 {[%clk 0:00:38.4]} 12... Bxc4 {[%clk 0:00:25.3]} 13. Qxc4 {[%clk 0:00:37.4]} 13... Qe7+ {[%clk 0:00:24.9]} 14. Qe2 {[%clk 0:00:33.6]} 14... Nd7 {[%clk 0:00:23.6]} 15. Qxe7+ {[%clk 0:00:30.7]} 15... Bxe7 {[%clk 0:00:22.6]} 16. Ne4+ {[%clk 0:00:29]} 16... Ke6 {[%clk 0:00:20.6]} 17. d3 {[%clk 0:00:27.3]} 17... Kf7 {[%clk 0:00:20.2]} 18. Bd2 {[%clk 0:00:26]} 18... Bd6 {[%clk 0:00:19.9]} 19. Nxd6+ {[%clk 0:00:24.2]} 19... cxd6 {[%clk 0:00:19.1]} 20. O-O-O {[%clk 0:00:23.4]} 20... Ke7 {[%clk 0:00:17.7]} 21. Bc3 {[%clk 0:00:22.6]} 21... Kd8 {[%clk 0:00:17.4]} 22. Rhe1 {[%clk 0:00:21.2]} 22... Kc7 {[%clk 0:00:16.9]} 23. f5 {[%clk 0:00:19.9]} 23... Rd8 {[%clk 0:00:16.1]} 24. Re7 {[%clk 0:00:18.6]} 24... Kb8 {[%clk 0:00:15.4]} 25. d4 {[%clk 0:00:14.1]} 25... Nf8 {[%clk 0:00:12.2]} 26. Rf7 {[%clk 0:00:12.4]} 26... Nd7 {[%clk 0:00:11.1]} 27. d5 {[%clk 0:00:11.2]} 27... Ne5 {[%clk 0:00:09.7]} 28. Bxe5 {[%clk 0:00:09.4]} 28... dxe5 {[%clk 0:00:09.4]} 29. Rxf6 {[%clk 0:00:08.5]} 29... Re8 {[%clk 0:00:07.4]} 30. d6 {[%clk 0:00:08]} 30... e4 {[%clk 0:00:06.6]} 31. d7 {[%clk 0:00:07.2]} 31... Rd8 {[%clk 0:00:05.7]} 32. Re6 {[%clk 0:00:05.7]} 32... e3 {[%clk 0:00:04.3]} 33. Re8 {[%clk 0:00:05.2]} 33... Kc7 {[%clk 0:00:03]} 34. Rxd8 {[%clk 0:00:03.5]} 34... Kxd8 {[%clk 0:00:02.7]} 35. Re1 {[%clk 0:00:03.1]} 35... e2 {[%clk 0:00:02.1]} 36. Rxe2 {[%clk 0:00:01.4]} 36... Kxd7 {[%clk 0:00:01.9]} 0-1

[Event "Live Chess"]
[Site "Chess.com"]
[Date "2010.12.06"]
[Round "-"]
[White "hipposcottimus"]
[Black "Elud"]
[Result "1-0"]
[CurrentPosition "8/4p2p/R1p2k2/1B3p2/4b3/1KP1P3/P5r1/8 b - -"]
[Timezone "UTC"]
[ECO "B07"]
[ECOUrl "https://www.chess.com/openings/Pirc-Defense-Modern-Defense-Geller-System-2...Nf6"]
[UTCDate "2010.12.06"]
[UTCTime "21:36:22"]
[WhiteElo "1589"]
[BlackElo "1313"]
[TimeControl "60"]
[Termination "hipposcottimus won on time"]
[StartTime "21:36:22"]
[EndDate "2010.12.06"]
[EndTime "21:38:28"]
[Link "https://www.chess.com/game/live/74719837"]

1. e4 {[%clk 0:01:00]} 1... d6 {[%clk 0:01:00]} 2. Nf3 {[%clk 0:00:59.7]} 2... Nf6 {[%clk 0:00:59.6]} 3. d4 {[%clk 0:00:59.4]} 3... g6 {[%clk 0:00:59.2]} 4. e5 {[%clk 0:00:58.6]} 4... dxe5 {[%clk 0:00:57.1]} 5. dxe5 {[%clk 0:00:58.2]} 5... Qxd1+ {[%clk 0:00:55.6]} 6. Kxd1 {[%clk 0:00:57.9]} 6... Ng4 {[%clk 0:00:54.8]} 7. Bd3 {[%clk 0:00:57.5]} 7... Bg7 {[%clk 0:00:52.6]} 8. Be3 {[%clk 0:00:56.1]} 8... O-O {[%clk 0:00:52.1]} 9. Kd2 {[%clk 0:00:54.8]} 9... Nxe5 {[%clk 0:00:50.9]} 10. Nc3 {[%clk 0:00:53.8]} 10... Nxf3+ {[%clk 0:00:48.9]} 11. gxf3 {[%clk 0:00:52.4]} 11... Nc6 {[%clk 0:00:48.6]} 12. Rad1 {[%clk 0:00:52]} 12... Be6 {[%clk 0:00:47.4]} 13. Kc1 {[%clk 0:00:51.5]} 13... Rfd8 {[%clk 0:00:46.2]} 14. Kb1 {[%clk 0:00:51.2]} 14... Bxc3 {[%clk 0:00:44.2]} 15. bxc3 {[%clk 0:00:46.2]} 15... Ne5 {[%clk 0:00:41.6]} 16. Bd4 {[%clk 0:00:45.7]} 16... Nxf3 {[%clk 0:00:39.2]} 17. Be3 {[%clk 0:00:40.8]} 17... Ne5 {[%clk 0:00:37.3]} 18. Be4 {[%clk 0:00:38.1]} 18... c6 {[%clk 0:00:36]} 19. Rdg1 {[%clk 0:00:35.9]} 19... Nc4 {[%clk 0:00:33.8]} 20. h4 {[%clk 0:00:34.9]} 20... Nxe3 {[%clk 0:00:32.5]} 21. fxe3 {[%clk 0:00:34.6]} 21... f5 {[%clk 0:00:30.7]} 22. Bd3 {[%clk 0:00:33.2]} 22... Bd5 {[%clk 0:00:29.5]} 23. Rh2 {[%clk 0:00:31.3]} 23... Rd6 {[%clk 0:00:27.6]} 24. h5 {[%clk 0:00:30.5]} 24... Be4 {[%clk 0:00:23.9]} 25. hxg6 {[%clk 0:00:29.6]} 25... Rxg6 {[%clk 0:00:20.7]} 26. Bc4+ {[%clk 0:00:24.7]} 26... Kg7 {[%clk 0:00:18.1]} 27. Rd1 {[%clk 0:00:18.6]} 27... Rg2 {[%clk 0:00:14.9]} 28. Rxg2+ {[%clk 0:00:16.4]} 28... Bxg2 {[%clk 0:00:13.5]} 29. Rd7 {[%clk 0:00:16.1]} 29... Kf6 {[%clk 0:00:11.9]} 30. Rxb7 {[%clk 0:00:15.1]} 30... Rg8 {[%clk 0:00:09.2]} 31. Rc7 {[%clk 0:00:14.3]} 31... Rg7 {[%clk 0:00:07.9]} 32. Kb2 {[%clk 0:00:14]} 32... Be4 {[%clk 0:00:06.2]} 33. Rxa7 {[%clk 0:00:13.5]} 33... Rg2 {[%clk 0:00:04.9]} 34. Ra6 {[%clk 0:00:13.1]} 34... Rxc2+ {[%clk 0:00:03.6]} 35. Kb3 {[%clk 0:00:12.8]} 35... Rg2 {[%clk 0:00:00.2]} 36. Bb5 {[%clk 0:00:11.9]} 1-0

[Event "Live Chess"]
[Site "Chess.com"]
[Date "2010.12.06"]
[Round "-"]
[White "hipposcottimus"]
[Black "matijasec"]
[Result "1-0"]
[CurrentPosition "2r5/p6p/6p1/8/1k2N3/1P6/P2R2PP/5RK1 b - -"]
[Timezone "UTC"]
[ECO "B06"]
[ECOUrl "https://www.chess.com/openings/Modern-Defense-with-1-e4"]
[UTCDate "2010.12.06"]
[UTCTime "21:33:58"]
[WhiteElo "1586"]
[BlackElo "1358"]
[TimeControl "60"]
[Termination "hipposcottimus won on time"]
[StartTime "21:33:58"]
[EndDate "2010.12.06"]
[EndTime "21:35:51"]
[Link "https://www.chess.com/game/live/74719153"]

1. e4 {[%clk 0:01:00]} 1... g6 {[%clk 0:01:00]} 2. e5 {[%clk 0:00:58.7]} 2... d6 {[%clk 0:00:57.7]} 3. f4 {[%clk 0:00:56.3]} 3... Bg7 {[%clk 0:00:55.5]} 4. d4 {[%clk 0:00:53.9]} 4... Nc6 {[%clk 0:00:51.5]} 5. Nf3 {[%clk 0:00:53.1]} 5... f6 {[%clk 0:00:48.7]} 6. d5 {[%clk 0:00:51.5]} 6... Nxe5 {[%clk 0:00:45]} 7. fxe5 {[%clk 0:00:49.9]} 7... dxe5 {[%clk 0:00:44.2]} 8. Nc3 {[%clk 0:00:49.6]} 8... e6 {[%clk 0:00:41.2]} 9. Bb5+ {[%clk 0:00:49]} 9... Bd7 {[%clk 0:00:39.3]} 10. dxe6 {[%clk 0:00:46.5]} 10... Bxb5 {[%clk 0:00:36]} 11. Qxd8+ {[%clk 0:00:45.2]} 11... Rxd8 {[%clk 0:00:35.2]} 12. Nxb5 {[%clk 0:00:44.9]} 12... Ne7 {[%clk 0:00:32.8]} 13. Nxc7+ {[%clk 0:00:44]} 13... Kf8 {[%clk 0:00:30.1]} 14. O-O {[%clk 0:00:43.7]} 14... f5 {[%clk 0:00:27.1]} 15. Bg5 {[%clk 0:00:40.2]} 15... e4 {[%clk 0:00:25.1]} 16. Bxe7+ {[%clk 0:00:37.9]} 16... Kxe7 {[%clk 0:00:23.8]} 17. Nh4 {[%clk 0:00:35]} 17... Rc8 {[%clk 0:00:18.7]} 18. Nxf5+ {[%clk 0:00:34.6]} 18... Kf6 {[%clk 0:00:14.4]} 19. Nd5+ {[%clk 0:00:34.2]} 19... Kxe6 {[%clk 0:00:12.3]} 20. Nxg7+ {[%clk 0:00:32.9]} 20... Kxd5 {[%clk 0:00:11.3]} 21. Rad1+ {[%clk 0:00:31.1]} 21... Kc4 {[%clk 0:00:09.6]} 22. c3 {[%clk 0:00:30.8]} 22... Kb5 {[%clk 0:00:07.6]} 23. Ne6 {[%clk 0:00:30.4]} 23... Ka4 {[%clk 0:00:06.9]} 24. Nd4 {[%clk 0:00:29.6]} 24... b5 {[%clk 0:00:05.7]} 25. b3+ {[%clk 0:00:27.8]} 25... Ka3 {[%clk 0:00:04.2]} 26. Rd2 {[%clk 0:00:26.9]} 26... Rxc3 {[%clk 0:00:02.5]} 27. Nxb5+ {[%clk 0:00:25.4]} 27... Kb4 {[%clk 0:00:01]} 28. Nxc3 {[%clk 0:00:23.5]} 28... Rc8 {[%clk 0:00:00.3]} 29. Nxe4 {[%clk 0:00:21.3]} 1-0

[Event "Live Chess"]
[Site "Chess.com"]
[Date "2010.12.06"]
[Round "-"]
[White "matijasec"]
[Black "hipposcottimus"]
[Result "0-1"]
[CurrentPosition "2r1r2k/pp2K2p/2p5/4P3/2p5/7P/8/6R1 w - -"]
[Timezone "UTC"]
[ECO "C55"]
[ECOUrl "https://www.chess.com/openings/Italian-Game-Two-Knights-Defense-4.O-O"]
[UTCDate "2010.12.06"]
[UTCTime "21:31:22"]
[WhiteElo "1361"]
[BlackElo "1583"]
[TimeControl "60"]
[Termination "hipposcottimus won on time"]
[StartTime "21:31:22"]
[EndDate "2010.12.06"]
[EndTime "21:33:34"]
[Link "https://www.chess.com/game/live/74718448"]

1. e4 {[%clk 0:01:00]} 1... e5 {[%clk 0:01:00]} 2. Nf3 {[%clk 0:00:58.9]} 2... Nc6 {[%clk 0:00:59.7]} 3. Bc4 {[%clk 0:00:58.2]} 3... Nf6 {[%clk 0:00:59.4]} 4. O-O {[%clk 0:00:56.3]} 4... d5 {[%clk 0:00:58.8]} 5. d3 {[%clk 0:00:55]} 5... dxc4 {[%clk 0:00:57.4]} 6. Nc3 {[%clk 0:00:51.9]} 6... Be7 {[%clk 0:00:55.6]} 7. d4 {[%clk 0:00:50.4]} 7... Bb4 {[%clk 0:00:51.7]} 8. dxe5 {[%clk 0:00:49.3]} 8... Bxc3 {[%clk 0:00:47.9]} 9. Qxd8+ {[%clk 0:00:47.3]} 9... Nxd8 {[%clk 0:00:41.5]} 10. bxc3 {[%clk 0:00:46.4]} 10... Nxe4 {[%clk 0:00:39.6]} 11. Bf4 {[%clk 0:00:43]} 11... Nxc3 {[%clk 0:00:38.8]} 12. Rfe1 {[%clk 0:00:38.9]} 12... Bg4 {[%clk 0:00:35.6]} 13. h3 {[%clk 0:00:34.8]} 13... Bxf3 {[%clk 0:00:34.2]} 14. gxf3 {[%clk 0:00:34.1]} 14... O-O {[%clk 0:00:32]} 15. Kh2 {[%clk 0:00:31.6]} 15... c6 {[%clk 0:00:27.6]} 16. Rg1 {[%clk 0:00:30.3]} 16... Ne6 {[%clk 0:00:27.1]} 17. Bh6 {[%clk 0:00:28.8]} 17... Rad8 {[%clk 0:00:23.6]} 18. f4 {[%clk 0:00:24.7]} 18... Kh8 {[%clk 0:00:22.7]} 19. Bxg7+ {[%clk 0:00:21.5]} 19... Nxg7 {[%clk 0:00:20.7]} 20. Rg2 {[%clk 0:00:19.5]} 20... Ne2 {[%clk 0:00:16.4]} 21. f3 {[%clk 0:00:15.9]} 21... Nxf4 {[%clk 0:00:15.9]} 22. Rxg7 {[%clk 0:00:14.1]} 22... Kxg7 {[%clk 0:00:14.2]} 23. Rg1+ {[%clk 0:00:13.7]} 23... Kh8 {[%clk 0:00:14]} 24. Kg3 {[%clk 0:00:12.2]} 24... Rd2 {[%clk 0:00:13.7]} 25. Kxf4 {[%clk 0:00:11.1]} 25... Rxc2 {[%clk 0:00:13.4]} 26. Kf5 {[%clk 0:00:09.7]} 26... Rxa2 {[%clk 0:00:13]} 27. Kf6 {[%clk 0:00:09]} 27... Ra3 {[%clk 0:00:12.3]} 28. Ke7 {[%clk 0:00:08.1]} 28... Rc8 {[%clk 0:00:07.5]} 29. Kxf7 {[%clk 0:00:06.7]} 29... Rxf3+ {[%clk 0:00:07.1]} 30. Ke6 {[%clk 0:00:03.7]} 30... Rff8 {[%clk 0:00:06.7]} 31. Ke7 {[%clk 0:00:02.6]} 31... Rfe8+ {[%clk 0:00:06.4]} 32. Kf7 {[%clk 0:00:01.3]} 32... Rf8+ {[%clk 0:00:05.3]} 33. Ke7 {[%clk 0:00:00.2]} 33... Rfe8+ {[%clk 0:00:04.6]} 0-1

[Event "Live Chess"]
[Site "Chess.com"]
[Date "2010.12.06"]
[Round "-"]
[White "GrobSpikeAttack"]
[Black "hipposcottimus"]
[Result "0-1"]
[CurrentPosition "2bR2r1/4np1k/p6p/8/2B5/1P2P2P/P4PP1/3R2K1 w - -"]
[Timezone "UTC"]
[ECO "A10"]
[ECOUrl "https://www.chess.com/openings/English-Opening-Jaenisch-Gambit"]
[UTCDate "2010.12.06"]
[UTCTime "21:28:49"]
[WhiteElo "1390"]
[BlackElo "1579"]
[TimeControl "60"]
[Termination "hipposcottimus won on time"]
[StartTime "21:28:49"]
[EndDate "2010.12.06"]
[EndTime "21:30:46"]
[Link "https://www.chess.com/game/live/74717705"]

1. c4 {[%clk 0:01:00]} 1... b5 {[%clk 0:01:00]} 2. c5 {[%clk 0:00:57.9]} 2... d6 {[%clk 0:00:58.2]} 3. cxd6 {[%clk 0:00:55.5]} 3... Qxd6 {[%clk 0:00:57.9]} 4. d4 {[%clk 0:00:54.4]} 4... e5 {[%clk 0:00:57.6]} 5. d5 {[%clk 0:00:51.6]} 5... Nf6 {[%clk 0:00:54.6]} 6. Nc3 {[%clk 0:00:47.9]} 6... c6 {[%clk 0:00:54.3]} 7. dxc6 {[%clk 0:00:45.6]} 7... Nxc6 {[%clk 0:00:53.6]} 8. Bg5 {[%clk 0:00:40.1]} 8... Qxd1+ {[%clk 0:00:47.4]} 9. Rxd1 {[%clk 0:00:37.6]} 9... Be7 {[%clk 0:00:47.1]} 10. Nf3 {[%clk 0:00:36]} 10... O-O {[%clk 0:00:45.1]} 11. e3 {[%clk 0:00:32.6]} 11... Ng4 {[%clk 0:00:44.2]} 12. Bxb5 {[%clk 0:00:29.7]} 12... Bxg5 {[%clk 0:00:42.3]} 13. Nxg5 {[%clk 0:00:27.8]} 13... Bb7 {[%clk 0:00:39]} 14. O-O {[%clk 0:00:25.5]} 14... Ne7 {[%clk 0:00:36.1]} 15. h3 {[%clk 0:00:24.6]} 15... Nf6 {[%clk 0:00:34.3]} 16. Bc4 {[%clk 0:00:16.2]} 16... Ng6 {[%clk 0:00:33.3]} 17. b3 {[%clk 0:00:14.9]} 17... a6 {[%clk 0:00:31.1]} 18. Bd3 {[%clk 0:00:14.4]} 18... e4 {[%clk 0:00:29.5]} 19. Bc2 {[%clk 0:00:11.6]} 19... h6 {[%clk 0:00:27.5]} 20. Ngxe4 {[%clk 0:00:09.4]} 20... Rae8 {[%clk 0:00:23.9]} 21. Nxf6+ {[%clk 0:00:08]} 21... gxf6 {[%clk 0:00:23.6]} 22. Bd3 {[%clk 0:00:06.3]} 22... Kg7 {[%clk 0:00:23.2]} 23. Rd2 {[%clk 0:00:05.6]} 23... Bc8 {[%clk 0:00:22.3]} 24. Rfd1 {[%clk 0:00:05.2]} 24... Kh7 {[%clk 0:00:21.6]} 25. Ne4 {[%clk 0:00:04.4]} 25... Ne7 {[%clk 0:00:21]} 26. Nxf6+ {[%clk 0:00:03.5]} 26... Kg7 {[%clk 0:00:19.5]} 27. Nxe8+ {[%clk 0:00:03.5]} 27... Rxe8 {[%clk 0:00:17.9]} 28. Bc4 {[%clk 0:00:02.2]} 28... Rg8 {[%clk 0:00:17.5]} 29. Rd8 {[%clk 0:00:01.1]} 29... Kh7 {[%clk 0:00:16.5]} 0-1

[Event "Live Chess"]
[Site "Chess.com"]
[Date "2010.12.06"]
[Round "-"]
[White "hipposcottimus"]
[Black "GrobSpikeAttack"]
[Result "1-0"]
[CurrentPosition "8/3p1p1p/p2Npkr1/2P5/6r1/8/5PPP/3RR1K1 b - -"]
[Timezone "UTC"]
[ECO "B20"]
[ECOUrl "https://www.chess.com/openings/Sicilian-Defense"]
[UTCDate "2010.12.06"]
[UTCTime "21:26:32"]
[WhiteElo "1579"]
[BlackElo "1390"]
[TimeControl "60"]
[Termination "hipposcottimus won on time"]
[StartTime "21:26:32"]
[EndDate "2010.12.06"]
[EndTime "21:28:25"]
[Link "https://www.chess.com/game/live/74717093"]

1. e4 {[%clk 0:01:00]} 1... c5 {[%clk 0:01:00]} 2. Bb5 {[%clk 0:00:55.6]} 2... a6 {[%clk 0:00:58.1]} 3. Be2 {[%clk 0:00:55.3]} 3... Nc6 {[%clk 0:00:56]} 4. Nf3 {[%clk 0:00:55]} 4... e6 {[%clk 0:00:54.2]} 5. c4 {[%clk 0:00:54.7]} 5... Bd6 {[%clk 0:00:52.4]} 6. d3 {[%clk 0:00:54.3]} 6... b6 {[%clk 0:00:49.8]} 7. Nc3 {[%clk 0:00:54]} 7... Bb7 {[%clk 0:00:49.1]} 8. Be3 {[%clk 0:00:53.7]} 8... Ne5 {[%clk 0:00:47.9]} 9. d4 {[%clk 0:00:53.2]} 9... Nxf3+ {[%clk 0:00:44.5]} 10. Bxf3 {[%clk 0:00:52.9]} 10... Nf6 {[%clk 0:00:43.6]} 11. e5 {[%clk 0:00:51.1]} 11... Bxf3 {[%clk 0:00:41.9]} 12. Qxf3 {[%clk 0:00:49.9]} 12... Bc7 {[%clk 0:00:31.5]} 13. exf6 {[%clk 0:00:48.6]} 13... Qxf6 {[%clk 0:00:31.1]} 14. Qxf6 {[%clk 0:00:47.5]} 14... gxf6 {[%clk 0:00:29.5]} 15. dxc5 {[%clk 0:00:47.2]} 15... bxc5 {[%clk 0:00:27.1]} 16. Bxc5 {[%clk 0:00:46.9]} 16... Rb8 {[%clk 0:00:25]} 17. Bd4 {[%clk 0:00:46.5]} 17... Rxb2 {[%clk 0:00:23.7]} 18. Bxf6 {[%clk 0:00:46.1]} 18... Rg8 {[%clk 0:00:22.9]} 19. O-O {[%clk 0:00:45.3]} 19... Bb6 {[%clk 0:00:19.1]} 20. Ne4 {[%clk 0:00:43.7]} 20... Rg6 {[%clk 0:00:18.1]} 21. Rad1 {[%clk 0:00:35.7]} 21... Rxa2 {[%clk 0:00:13.4]} 22. c5 {[%clk 0:00:31.7]} 22... Ba5 {[%clk 0:00:10.1]} 23. Bc3 {[%clk 0:00:29.6]} 23... Bxc3 {[%clk 0:00:08.5]} 24. Nxc3 {[%clk 0:00:27.8]} 24... Ra5 {[%clk 0:00:07.9]} 25. Ne4 {[%clk 0:00:27.3]} 25... Ra4 {[%clk 0:00:06.7]} 26. Nd6+ {[%clk 0:00:26.7]} 26... Ke7 {[%clk 0:00:04.9]} 27. Rfe1 {[%clk 0:00:23.6]} 27... Rag4 {[%clk 0:00:03.6]} 28. Nf5+ {[%clk 0:00:22.8]} 28... Kf6 {[%clk 0:00:00.1]} 29. Nd6 {[%clk 0:00:21.2]} 1-0

[Event "Live Chess"]
[Site "Chess.com"]
[Date "2010.12.06"]
[Round "-"]
[White "GrobSpikeAttack"]
[Black "hipposcottimus"]
[Result "0-1"]
[CurrentPosition "8/p5Np/bp2p1k1/4P3/4p3/8/PPP3PP/1K1q4 w - -"]
[Timezone "UTC"]
[ECO "D02"]
[ECOUrl "https://www.chess.com/openings/Queens-Pawn-Opening-Zukertort-Variation-2...c6-3.e3"]
[UTCDate "2010.12.06"]
[UTCTime "21:24:24"]
[WhiteElo "1390"]
[BlackElo "1579"]
[TimeControl "60"]
[Termination "hipposcottimus won by checkmate"]
[StartTime "21:24:24"]
[EndDate "2010.12.06"]
[EndTime "21:26:09"]
[Link "https://www.chess.com/game/live/74716584"]

1. d4 {[%clk 0:01:00]} 1... d5 {[%clk 0:01:00]} 2. Nf3 {[%clk 0:00:57.6]} 2... c6 {[%clk 0:00:59.2]} 3. e3 {[%clk 0:00:57.3]} 3... Nd7 {[%clk 0:00:58.8]} 4. Bd3 {[%clk 0:00:56.7]} 4... e6 {[%clk 0:00:58.5]} 5. e4 {[%clk 0:00:55.9]} 5... Ngf6 {[%clk 0:00:57.9]} 6. e5 {[%clk 0:00:54.7]} 6... Ne4 {[%clk 0:00:54.7]} 7. Bxe4 {[%clk 0:00:53.3]} 7... dxe4 {[%clk 0:00:54.1]} 8. Ng5 {[%clk 0:00:52.4]} 8... Be7 {[%clk 0:00:51.9]} 9. Nxe4 {[%clk 0:00:50.3]} 9... O-O {[%clk 0:00:50]} 10. Bg5 {[%clk 0:00:46.9]} 10... f6 {[%clk 0:00:49.7]} 11. Bh4 {[%clk 0:00:44.9]} 11... f5 {[%clk 0:00:45.7]} 12. Bxe7 {[%clk 0:00:43.9]} 12... Qxe7 {[%clk 0:00:44.2]} 13. Nd6 {[%clk 0:00:43.9]} 13... c5 {[%clk 0:00:39.7]} 14. Na3 {[%clk 0:00:39.6]} 14... cxd4 {[%clk 0:00:37.7]} 15. Qxd4 {[%clk 0:00:38.3]} 15... b6 {[%clk 0:00:37.4]} 16. O-O-O {[%clk 0:00:37.2]} 16... Nc5 {[%clk 0:00:33]} 17. Nab5 {[%clk 0:00:35.3]} 17... Qg5+ {[%clk 0:00:32.3]} 18. Kb1 {[%clk 0:00:33.2]} 18... Ne4 {[%clk 0:00:30.7]} 19. f4 {[%clk 0:00:31.8]} 19... Qxf4 {[%clk 0:00:29.2]} 20. Rhf1 {[%clk 0:00:29.7]} 20... Qg4 {[%clk 0:00:28]} 21. Nxe4 {[%clk 0:00:25.3]} 21... fxe4 {[%clk 0:00:25.8]} 22. Rxf8+ {[%clk 0:00:24.9]} 22... Kxf8 {[%clk 0:00:24.7]} 23. Qd8+ {[%clk 0:00:24.1]} 23... Kf7 {[%clk 0:00:22.7]} 24. Nd6+ {[%clk 0:00:20.8]} 24... Kg6 {[%clk 0:00:22.1]} 25. Rf1 {[%clk 0:00:19.7]} 25... Ba6 {[%clk 0:00:19.8]} 26. Ne8 {[%clk 0:00:17.1]} 26... Rxd8 {[%clk 0:00:18.3]} 27. Nxg7 {[%clk 0:00:15.6]} 27... Rd1+ {[%clk 0:00:16.2]} 28. Rxd1 {[%clk 0:00:13.2]} 28... Qxd1# {[%clk 0:00:15.9]} 0-1

[Event "Live Chess"]
[Site "Chess.com"]
[Date "2010.12.06"]
[Round "-"]
[White "tandar777"]
[Black "hipposcottimus"]
[Result "0-1"]
[CurrentPosition "2r2rk1/6pp/p4b2/8/1P2p3/1R2PbP1/P4PBP/2n3K1 w - -"]
[Timezone "UTC"]
[ECO "A00"]
[ECOUrl "https://www.chess.com/openings/Kings-Fianchetto-Opening-1...e5-2.Bg2-d5"]
[UTCDate "2010.12.06"]
[UTCTime "21:22:08"]
[WhiteElo "1535"]
[BlackElo "1579"]
[TimeControl "60"]
[Termination "hipposcottimus won on time"]
[StartTime "21:22:08"]
[EndDate "2010.12.06"]
[EndTime "21:24:07"]
[Link "https://www.chess.com/game/live/74715940"]

1. g3 {[%clk 0:01:00]} 1... e5 {[%clk 0:01:00]} 2. Bg2 {[%clk 0:00:59.6]} 2... d5 {[%clk 0:00:59.8]} 3. e3 {[%clk 0:00:59.3]} 3... c5 {[%clk 0:00:59.4]} 4. Ne2 {[%clk 0:00:58.9]} 4... e4 {[%clk 0:00:59.1]} 5. O-O {[%clk 0:00:58.5]} 5... f5 {[%clk 0:00:58.5]} 6. d3 {[%clk 0:00:58.1]} 6... Nf6 {[%clk 0:00:58.2]} 7. dxe4 {[%clk 0:00:57.2]} 7... fxe4 {[%clk 0:00:57.1]} 8. c3 {[%clk 0:00:56.5]} 8... Bg4 {[%clk 0:00:56.7]} 9. b3 {[%clk 0:00:55.4]} 9... Bf3 {[%clk 0:00:56.3]} 10. Bb2 {[%clk 0:00:53.2]} 10... Be7 {[%clk 0:00:54.4]} 11. Qd2 {[%clk 0:00:51.9]} 11... O-O {[%clk 0:00:54]} 12. c4 {[%clk 0:00:50.4]} 12... Nc6 {[%clk 0:00:52.1]} 13. cxd5 {[%clk 0:00:48.7]} 13... Nxd5 {[%clk 0:00:51.8]} 14. Nec3 {[%clk 0:00:44]} 14... Ndb4 {[%clk 0:00:50.5]} 15. Qxd8 {[%clk 0:00:42.3]} 15... Raxd8 {[%clk 0:00:50.2]} 16. Na3 {[%clk 0:00:40.1]} 16... Nd3 {[%clk 0:00:45.4]} 17. Rab1 {[%clk 0:00:37.8]} 17... Ncb4 {[%clk 0:00:43.1]} 18. Na4 {[%clk 0:00:33.2]} 18... b5 {[%clk 0:00:38.3]} 19. Nc3 {[%clk 0:00:28.7]} 19... Bf6 {[%clk 0:00:37.2]} 20. Naxb5 {[%clk 0:00:26.5]} 20... a6 {[%clk 0:00:33.2]} 21. Na3 {[%clk 0:00:24.6]} 21... Nxb2 {[%clk 0:00:30.5]} 22. Rxb2 {[%clk 0:00:22.8]} 22... Bxc3 {[%clk 0:00:30.2]} 23. Rbb1 {[%clk 0:00:20.3]} 23... Bf6 {[%clk 0:00:29.9]} 24. Nc4 {[%clk 0:00:18.5]} 24... Nd3 {[%clk 0:00:26.8]} 25. Nb6 {[%clk 0:00:13.4]} 25... Rb8 {[%clk 0:00:24.5]} 26. Na4 {[%clk 0:00:12.2]} 26... Rbc8 {[%clk 0:00:22.8]} 27. Nxc5 {[%clk 0:00:07.1]} 27... Nxc5 {[%clk 0:00:21]} 28. b4 {[%clk 0:00:06.3]} 28... Nd3 {[%clk 0:00:20.7]} 29. Rb2 {[%clk 0:00:05]} 29... Nxb2 {[%clk 0:00:17.5]} 30. Rb1 {[%clk 0:00:03.3]} 30... Nd3 {[%clk 0:00:17.1]} 31. Rb3 {[%clk 0:00:01.7]} 31... Nc1 {[%clk 0:00:15]} 0-1